fUSD/lending_fUSD_20240917
["ID","MTS","AMOUNT","RATE_DAILY","PERIOD"]
[338358243,1726553439917,-511.495558,0.00014999,2]
[338358244,1726553439927,-511.495558,0.00014999,2]
[338358245,1726553439936,-511.495558,0.00014999,2]
[338358247,1726553439945,-511.495558,0.00014999,2]
[338358249,1726553439955,-511.495558,0.00014999,2]
[338358250,1726553439964,-511.495558,0.00014999,2]
[338358252,1726553439974,-511.495558,0.00014999,2]
[338358254,1726553439984,-511.495558,0.00014999,2]
[338358256,1726553439993,-511.495558,0.00014999,2]
[338358258,1726553440002,-511.495558,0.00014999,2]
[338358260,1726553440012,-511.495558,0.00014999,2]
[338358262,1726553440022,-526.10971681,0.00014999,2]
[338358264,1726553440031,-526.10971681,0.00014999,2]
[338358266,1726553440041,-526.10971681,0.00014999,2]
[338358268,1726553440050,-526.10971681,0.00014999,2]
[338358269,1726553440060,-526.10971681,0.00014999,2]
[338358271,1726553440070,-526.10971681,0.00014999,2]
[338358272,1726553440080,-526.10971681,0.00014999,2]
[338358273,1726553440090,-150.9588351,0.00014999,2]
[338358274,1726553440099,-574.0,0.00015,2]
[338358275,1726553440110,-36211.99454273,0.00015,2]
[338358276,1726553440122,-17763.29560768,0.00015,2]
[338358277,1726553440135,-3844.79594496,0.00015,2]
[338358278,1726553440149,-884.16644664,0.00015,2]
[338358279,1726553440162,-626.255,0.00015,2]
[338358280,1726553440173,-729.91991333,0.00015,2]
[338358281,1726553440185,-21581.56704553,0.00015,2]
[338358282,1726553440195,-126796.01548686,0.00015,2]
[338358283,1726553440210,-24929.11631104,0.00015,2]
[338358284,1726553440222,-269.71857153,0.00015,2]
[338358285,1726553440233,-656.66,0.00015,2]
[338358286,1726553440256,-187080.7967188,0.00015,2]
[338358287,1726553440766,-1315682.14824731,0.00015,2]
[338358288,1726553441481,-99822.38001349,0.00015,2]
[338358289,1726553441496,-868266.7468659,0.00015,2]
[338358290,1726553441510,-63394.02948113,0.00015,2]
[338358291,1726553441522,-7180.06767896,0.00015,2]
[338358292,1726553441533,-538867.72621972,0.00015,2]
[338358293,1726553441547,-1641.30252,0.00015,2]
[338358294,1726553441559,-385.66261705,0.00015,2]
[338358295,1726553441590,-467.84357261,0.00015,2]
[338358296,1726553441601,-5380.48614854,0.00015,2]
[338358297,1726553441612,-1092.27862809,0.00015,2]
[338358298,1726553441625,-2241.40533211,0.00015,2]
[338358299,1726553441636,-29574.57782437,0.00015,2]
[338358300,1726553441647,-713.31271279,0.00015,2]
[338358301,1726553441659,-23864.38564752,0.00015,2]
[338358351,1726553445602,-580.8,0.0001498,3]
[338358352,1726553445612,-618.27094334,0.00014999,2]
[338358353,1726553445622,-7623.92527822,0.00015,2]
[338358356,1726553604137,2000.0,0.00026,120]
[338358357,1726553655126,1000.0,0.00026,120]
[338358358,1726553666134,259.7,0.0001221,2]
[338358361,1726553812942,3200.0,8.22e-05,2]
[338358362,1726553813594,3600.0,8.22e-05,2]
[338358363,1726553814893,3200.0,9.59e-05,2]
[338358364,1726553815044,3600.0,9.59e-05,2]
[338358365,1726553816112,3200.0,0.0001096,2]
[338358366,1726553816614,3600.0,0.0001096,2]
[338358367,1726553817715,3200.0,0.0001233,2]
[338358368,1726553818206,3600.0,0.0001233,2]
[338358370,1726554021020,500.0,0.00026,120]
[338358371,1726554025908,500.0,0.00026,120]
[338358372,1726554026845,500.0,0.00026,120]
[338358373,1726554027657,500.0,0.00026,120]
[338358374,1726554028621,500.0,0.00026,120]
[338358375,1726554029171,500.0,0.00026,120]
[338358376,1726554029999,500.0,0.00026,120]
[338358377,1726554030790,500.0,0.00026,120]
[338358378,1726554031212,500.0,0.00026,120]
[338358379,1726554031528,500.0,0.00026,120]
[338358380,1726554031856,500.0,0.00026,120]
[338358381,1726554032320,500.0,0.00026,120]
[338358382,1726554032642,500.0,0.00026,120]
[338358383,1726554032956,500.0,0.00026,120]
[338358384,1726554033346,500.0,0.00026,120]
[338358385,1726554033843,500.0,0.00026,120]
[338358386,1726554034261,500.0,0.00026,120]
[338358387,1726554034644,500.0,0.00026,120]
[338358388,1726554035158,500.0,0.00026,120]
[338358389,1726554035493,500.0,0.00026,120]
[338358390,1726554035923,500.0,0.00026,120]
[338358391,1726554036291,500.0,0.00026,120]
[338358392,1726554036707,500.0,0.00026,120]
[338358393,1726554037192,500.0,0.00026,120]
[338358394,1726554037541,500.0,0.00026,120]
[338358395,1726554037964,500.0,0.00026,120]
[338358396,1726554038410,500.0,0.00026,120]
[338358397,1726554039319,500.0,0.00026,120]
[338358398,1726554039433,500.0,0.00026,120]
[338358399,1726554039510,500.0,0.00026,120]
[338358400,1726554039749,500.0,0.00026,120]
[338358401,1726554040080,500.0,0.00026,120]
[338358402,1726554040642,500.0,0.00026,120]
[338358403,1726554041008,500.0,0.00026,120]
[338358404,1726554041479,500.0,0.00026,120]
[338358405,1726554041772,500.0,0.00026,120]
[338358406,1726554042057,500.0,0.00026,120]
[338358407,1726554042460,500.0,0.00026,120]
[338358408,1726554042699,500.0,0.00026,120]
[338358409,1726554043019,500.0,0.00026,120]
[338358410,1726554043524,500.0,0.00026,120]
[338358411,1726554043835,500.0,0.00026,120]
[338358412,1726554045344,500.0,0.00026,120]
[338358413,1726554045797,500.0,0.00026,120]
[338358414,1726554046177,500.0,0.00026,120]
[338358415,1726554046579,500.0,0.00026,120]
[338358416,1726554046927,500.0,0.00026,120]
[338358417,1726554047366,500.0,0.00026,120]
[338358418,1726554047763,500.0,0.00026,120]
[338358419,1726554048094,500.0,0.00026,120]
[338358420,1726554048438,500.0,0.00026,120]
[338358421,1726554048855,500.0,0.00026,120]
[338358422,1726554050272,500.0,0.00026,120]
[338358423,1726554050437,500.0,0.00026,120]
[338358424,1726554050602,500.0,0.00026,120]
[338358426,1726554051099,500.0,0.00026,120]
[338358427,1726554051185,500.0,0.00026,120]
[338358428,1726554051369,500.0,0.00026,120]
[338358429,1726554051625,500.0,0.00026,120]
[338358430,1726554052148,500.0,0.00026,120]
[338358431,1726554052466,500.0,0.00026,120]
[338358432,1726554052967,500.0,0.00026,120]
[338358433,1726554053717,500.0,0.00026,120]
[338358434,1726554054061,500.0,0.00026,120]
[338358435,1726554054481,500.0,0.00026,120]
[338358436,1726554054882,500.0,0.00026,120]
[338358437,1726554055222,500.0,0.00026,120]
[338358438,1726554055671,500.0,0.00026,120]
[338358439,1726554055984,500.0,0.00026,120]
[338358440,1726554056281,500.0,0.00026,120]
[338358441,1726554056697,500.0,0.00026,120]
[338358442,1726554057498,500.0,0.00026,120]
[338358443,1726554058028,500.0,0.00026,120]
[338358444,1726554059105,168.77,0.00010959,2]
[338358445,1726554070598,500.0,0.00026,120]
[338358446,1726554071590,500.0,0.00026,120]
[338358447,1726554071922,500.0,0.00026,120]
[338358448,1726554072234,500.0,0.00026,120]
[338358449,1726554077840,500.0,0.00026,120]
[338358450,1726554078217,500.0,0.00026,120]
[338358451,1726554078663,500.0,0.00026,120]
[338358452,1726554081182,500.0,0.00026,120]
[338358453,1726554082065,500.0,0.00026,120]
[338358454,1726554082180,500.0,0.00026,120]
[338358455,1726554082405,500.0,0.00026,120]
[338358456,1726554082817,500.0,0.00026,120]
[338358457,1726554083231,500.0,0.00026,120]
[338358458,1726554083663,500.0,0.00026,120]
[338358459,1726554084081,500.0,0.00026,120]
[338358460,1726554084428,500.0,0.00026,120]
[338358461,1726554084805,500.0,0.00026,120]
[338358462,1726554085125,500.0,0.00026,120]
[338358463,1726554085546,500.0,0.00026,120]
[338358464,1726554085989,500.0,0.00026,120]
[338358465,1726554086354,500.0,0.00026,120]
[338358466,1726554086636,500.0,0.00026,120]
[338358467,1726554087080,500.0,0.00026,120]
[338358468,1726554087406,500.0,0.00026,120]
[338358469,1726554087737,500.0,0.00026,120]
[338358470,1726554088068,500.0,0.00026,120]
[338358471,1726554088498,500.0,0.00026,120]
[338358472,1726554088837,500.0,0.00026,120]
[338358473,1726554089280,500.0,0.00026,120]
[338358474,1726554089603,500.0,0.00026,120]
[338358475,1726554090109,500.0,0.00026,120]
[338358476,1726554090370,500.0,0.00026,120]
[338358477,1726554090809,500.0,0.00026,120]
[338358478,1726554091236,500.0,0.00026,120]
[338358479,1726554091530,500.0,0.00026,120]
[338358480,1726554091935,500.0,0.00026,120]
[338358481,1726554107296,500.0,0.00026,120]
[338358482,1726554107727,500.0,0.00026,120]
[338358483,1726554108051,500.0,0.00026,120]
[338358484,1726554108477,500.0,0.00026,120]
[338358485,1726554108843,500.0,0.00026,120]
[338358486,1726554109167,500.0,0.00026,120]
[338358487,1726554109499,500.0,0.00026,120]
[338358488,1726554109933,500.0,0.00026,120]
[338358489,1726554110380,500.0,0.00026,120]
[338358490,1726554110800,500.0,0.00026,120]
[338358491,1726554111274,500.0,0.00026,120]
[338358492,1726554111690,500.0,0.00026,120]
[338358493,1726554111984,500.0,0.00026,120]
[338358494,1726554112510,500.0,0.00026,120]
[338358495,1726554112712,500.0,0.00026,120]
[338358496,1726554113096,500.0,0.00026,120]
[338358497,1726554113999,500.0,0.00026,120]
[338358498,1726554114183,500.0,0.00026,120]
[338358499,1726554114513,500.0,0.00026,120]
[338358500,1726554114652,500.0,0.00026,120]
[338358501,1726554114983,500.0,0.00026,120]
[338358502,1726554115742,500.0,0.00026,120]
[338358503,1726554115792,500.0,0.00026,120]
[338358504,1726554116071,500.0,0.00026,120]
[338358505,1726554116405,500.0,0.00026,120]
[338358506,1726554116739,500.0,0.00026,120]
[338358507,1726554117181,500.0,0.00026,120]
[338358508,1726554117791,500.0,0.00026,120]
[338358509,1726554118004,500.0,0.00026,120]
[338358510,1726554118252,500.0,0.00026,120]
[338358511,1726554118578,500.0,0.00026,120]
[338358512,1726554118909,500.0,0.00026,120]
[338358513,1726554119507,500.0,0.00026,120]
[338358514,1726554119715,500.0,0.00026,120]
[338358515,1726554120046,500.0,0.00026,120]
[338358516,1726554120353,500.0,0.00026,120]
[338358517,1726554120839,500.0,0.00026,120]
[338358518,1726554121004,500.0,0.00026,120]
[338358519,1726554121351,500.0,0.00026,120]
[338358520,1726554121674,500.0,0.00026,120]
[338358521,1726554123182,500.0,0.00026,120]
[338358522,1726554127018,500.0,0.00026,120]
[338358523,1726554127947,500.0,0.00026,120]
[338358524,1726554128780,500.0,0.00026,120]
[338358525,1726554129448,500.0,0.00026,120]
[338358526,1726554130079,500.0,0.00026,120]
[338358527,1726554130755,500.0,0.00026,120]
[338358528,1726554131402,500.0,0.00026,120]
[338358529,1726554131975,500.0,0.00026,120]
[338358530,1726554132548,500.0,0.00026,120]
[338358531,1726554132995,500.0,0.00026,120]
[338358532,1726554144200,500.0,0.00026,120]
[338358533,1726554145196,500.0,0.00026,120]
[338358534,1726554146186,500.0,0.00026,120]
[338358535,1726554147198,500.0,0.00026,120]
[338358536,1726554148642,500.0,0.00026,120]
[338358537,1726554177061,321.64,0.00011074,2]
[338358539,1726554211647,2000.0,0.00026,120]
[338358540,1726554227453,324.28736083,0.00025999,120]
[338358541,1726554233628,500.0,0.00026,120]
[338358542,1726554315415,1050.0,0.00011,2]
[338358543,1726554388634,4804.94891423,0.00012565,2]
[338358544,1726554402035,1823.96,0.00012569,2]
[338358545,1726554438384,650.46,0.00012532,2]
[338358548,1726554456295,642.11,0.00010959,2]
[338358549,1726554456559,274.93,0.00012536,2]
[338358567,1726554554986,213.2,0.00012529,2]
[338358582,1726554600720,250.0,0.00012587,2]
[338358587,1726554628552,7501.27,0.00012439,2]
[338358595,1726554631592,-500.0,0.00012665,2]
[338358596,1726554631601,-171.98,0.00012665,2]
[338358597,1726554631611,-1798.26297497,0.00012701,2]
[338358598,1726554631623,-807.50702503,0.00012701,2]
[338358599,1726554631633,-169.36,0.00012726,2]
[338358600,1726554631642,-300.0,0.00012809,2]
[338358601,1726554631652,-1950.09671497,0.0001281,2]
[338358602,1726554631664,-300.0,0.0001281,2]
[338358603,1726554631684,-4842.93689012,0.0001281,2]
[338358604,1726554631699,-2836.32857699,0.0001281,2]
[338358605,1726554631711,-413.47322908,0.0001281,2]
[338358606,1726554631722,-395.51458884,0.0001281,2]
[338358607,1726554631732,-220.25593116,0.00012834,2]
[338358608,1726554631743,-99.74406884,0.00012834,2]
[338358609,1726554631753,-161.3,0.00012882,2]
[338358610,1726554631763,-166.26584589,0.000129,2]
[338358611,1726554631772,-69.46008527,0.000129,2]
[338358612,1726554631785,-287.37338502,0.000129,2]
[338358613,1726554631812,-111.66342971,0.000129,2]
[338358614,1726554631822,-296.37866448,0.000129,2]
[338358615,1726554631831,-113.40121799,0.00012916,2]
[338358616,1726554631843,-230.97878201,0.00012916,2]
[338358617,1726554631852,-187.54,0.00012936,2]
[338358618,1726554631861,-499.99,0.00012936,2]
[338358619,1726554631871,-150.72,0.0001299,2]
[338358620,1726554631880,-150.0,0.00012998,2]
[338358621,1726554631890,-172.96929004,0.00012999,2]
[338358622,1726554631900,-500.0,0.00012999,2]
[338358623,1726554631910,-500.0,0.00012999,2]
[338358624,1726554631920,-126.91072372,0.00012999,2]
[338358625,1726554631931,-373.08927628,0.00012999,2]
[338358626,1726554631941,-500.0,0.00012999,2]
[338358627,1726554631950,-500.0,0.00012999,2]
[338358628,1726554631960,-500.0,0.00012999,2]
[338358629,1726554631970,-500.0,0.00012999,2]
[338358630,1726554631980,-500.0,0.00012999,2]
[338358631,1726554631989,-553.90212029,0.00012999,2]
[338358632,1726554632000,-500.0,0.00012999,2]
[338358633,1726554632009,-500.0,0.00012999,2]
[338358634,1726554632019,-210.7169846,0.00012999,2]
[338358635,1726554632028,-500.0,0.00012999,2]
[338358636,1726554632038,-500.0,0.00012999,2]
[338358637,1726554632048,-500.0,0.00012999,2]
[338358638,1726554632057,-500.0,0.00012999,2]
[338358639,1726554632067,-500.0,0.00012999,2]
[338358640,1726554632076,-450.0,0.00012999,2]
[338358641,1726554632086,-500.0,0.00012999,2]
[338358642,1726554632095,-500.0,0.00012999,2]
[338358643,1726554632104,-628.11,0.00013,2]
[338358644,1726554632113,-825.14952524,0.00013,2]
[338358646,1726554632125,-777.495996,0.00013,2]
[338358648,1726554632143,-496.60530949,0.00013,2]
[338358649,1726554632154,-495.07525445,0.00013,2]
[338358650,1726554632165,-1703.61103245,0.00013,2]
[338358651,1726554632195,-4411.92248121,0.00013,2]
[338358652,1726554632206,-6149.07558323,0.00013,2]
[338358653,1726554632294,-83624.15923272,0.00013,2]
[338358654,1726554632405,250.0,0.00012422,2]
[338358661,1726554637637,-1248.82727493,0.00013,2]
[338358662,1726554637980,-345744.22555726,0.00013,2]
[338358663,1726554637990,-1100.0,0.00013,2]
[338358664,1726554638001,-3462.38003392,0.00013,2]
[338358671,1726554639614,-867.74640596,0.00013,2]
[338358672,1726554639626,-1146.80056203,0.00013,2]
[338358673,1726554639638,-581.0751696,0.00013,2]
[338358674,1726554639650,-1431.42885964,0.00013,2]
[338358675,1726554639662,-3257.921871,0.00013,2]
[338358676,1726554639673,-302.0,0.00013,2]
[338358677,1726554639684,-896.82497611,0.00013,2]
[338358678,1726554639695,-383.57266039,0.00013,2]
[338358679,1726554639707,-5441.758176,0.00013,2]
[338358680,1726554639719,-311.142,0.00013,2]
[338358681,1726554639731,-2143.51610005,0.00013,2]
[338358682,1726554639751,-443.11434326,0.00013,2]
[338358683,1726554639763,-595.51220477,0.00013,2]
[338358684,1726554639774,-254.25,0.00013,2]
[338358685,1726554639785,-1467.29741007,0.00013,2]
[338358686,1726554639808,-1221.18105363,0.00013,2]
[338358687,1726554639819,-5578.94510997,0.00013,2]
[338358688,1726554639831,-27241.57039901,0.00013,2]
[338358689,1726554639842,-264.4956,0.00013,2]
[338358691,1726554640035,-37533.08178596,0.00013,2]
[338358700,1726554640111,-1023.25,0.00013,2]
[338358703,1726554640123,-147723.24453998,0.00013,2]
[338358705,1726554640135,-3017.256,0.00013,2]
[338358707,1726554640146,-3380.424834,0.00013,2]
[338358710,1726554640166,-362.572002,0.00013,2]
[338358712,1726554640178,-501.60663,0.00013,2]
[338358714,1726554640191,-2030.67423925,0.00013,2]
[338358716,1726554640203,-1950.58610927,0.00013,2]
[338358736,1726554642647,-7724.67253932,0.00013,2]
[338358737,1726554642659,-571.59772232,0.00013,2]
[338358738,1726554642670,-297017.54970479,0.00013,2]
[338358739,1726554642681,-580.5241446,0.00013,2]
[338358740,1726554642693,-1243.9391314,0.00013,2]
[338358741,1726554642704,-7072.23778962,0.00013,2]
[338358742,1726554642714,-4987.68432363,0.00013,2]
[338358743,1726554642723,-166.26584587,0.00013233,2]
[338358744,1726554642733,-4309.30664108,0.00013267,2]
[338358745,1726554642744,-738.1314692,0.00013267,2]
[338358746,1726554642764,-446.91429972,0.00013267,2]
[338358747,1726554642775,-2020.54450368,0.00013267,2]
[338358748,1726554642786,-426.16067413,0.00013267,2]
[338358749,1726554642798,-15958.94241219,0.00013267,2]
[338358750,1726554642809,-250.0,0.00013308,2]
[338358751,1726554642819,-321.64,0.00013338,2]
[338358752,1726554642828,-2325.28,0.0001334,2]
[338358753,1726554642838,-602.55039724,0.00013393,2]
[338358754,1726554642847,-1541.13,0.00013462,2]
[338358755,1726554642855,-155.85555883,0.00013488,2]
[338358756,1726554642865,-1000.0,0.000135,2]
[338358757,1726554642875,-166.26584587,0.00013567,2]
[338358758,1726554642884,-680.0,0.00013584,2]
[338358759,1726554642895,-1231.35,0.00013699,2]
[338358761,1726554642905,-959.77570433,0.00013699,2]
[338358763,1726554642916,-997.62972712,0.00013699,2]
[338358765,1726554642928,-384.81456855,0.00013699,2]
[338358767,1726554642937,-200.0,0.00013699,2]
[338358769,1726554642946,-500.0,0.00013699,2]
[338358771,1726554642956,-2751.0,0.00013699,2]
[338358773,1726554642964,-501.56817797,0.00013773,2]
[338358775,1726554642974,-212942.238329,0.000138,2]
[338358777,1726554642984,-353.5,0.00013859,2]
[338358779,1726554642994,-28716.255,0.00013877,2]
[338358781,1726554643004,-166.26584587,0.000139,2]
[338358783,1726554643013,-624.0,0.00013945,2]
[338358785,1726554643023,-1261.0,0.00013945,2]
[338358788,1726554643032,-448.0,0.00013945,2]
[338358790,1726554643041,-940.66,0.00013986,2]
[338358792,1726554643050,-558.707,0.00013986,2]
[338358794,1726554643060,-863.208,0.00013986,2]
[338358795,1726554643071,-150.0,0.00013986,2]
[338358796,1726554643081,-1902.0,0.00013986,2]
[338358797,1726554643092,-553.0,0.00013986,2]
[338358798,1726554643102,-248.0,0.00013986,2]
[338358799,1726554643111,-806.0,0.00013986,2]
[338358800,1726554643122,-1918.0,0.00013986,2]
[338358802,1726554643133,-3345.0,0.00013986,2]
[338358803,1726554643142,-1548.0,0.00013986,2]
[338358804,1726554643152,-420.0,0.0001405,2]
[338358805,1726554643161,-753.08,0.00014055,2]
[338358806,1726554643171,-753.08,0.00014055,2]
[338358807,1726554643180,-753.08,0.00014055,2]
[338358808,1726554643193,-753.08,0.00014055,2]
[338358809,1726554643203,-753.08,0.00014055,2]
[338358810,1726554643212,-753.08,0.00014055,2]
[338358811,1726554643221,-753.08,0.00014055,2]
[338358812,1726554643232,-753.08,0.00014055,2]
[338358813,1726554643241,-753.08,0.00014055,2]
[338358814,1726554643252,-753.08,0.00014055,2]
[338358815,1726554643261,-753.08,0.00014055,2]
[338358816,1726554643271,-753.08,0.00014055,2]
[338358817,1726554643281,-753.08,0.00014055,2]
[338358818,1726554643290,-753.08,0.00014055,2]
[338358819,1726554643300,-753.08,0.00014055,2]
[338358820,1726554643309,-753.08,0.00014055,2]
[338358821,1726554643319,-753.08,0.00014055,2]
[338358822,1726554643328,-422.51,0.00014055,2]
[338358823,1726554643338,-753.08,0.00014055,2]
[338358824,1726554643347,-753.08,0.00014055,2]
[338358825,1726554643356,-422.51,0.00014055,2]
[338358826,1726554643366,-753.08,0.00014055,2]
[338358827,1726554643375,-753.08,0.00014055,2]
[338358828,1726554643392,-427.99,0.00014192,2]
[338358829,1726554643414,-357.86,0.00014192,2]
[338358830,1726554643431,-150.0,0.00014192,2]
[338358831,1726554643450,-150.0,0.00014192,2]
[338358832,1726554643469,-150.0,0.00014192,2]
[338358833,1726554643487,-150.0,0.00014192,2]
[338358834,1726554643504,-150.0,0.00014192,2]
[338358835,1726554643521,-962.93,0.00014192,2]
[338358836,1726554643536,-150.0,0.00014192,2]
[338358837,1726554643556,-150.0,0.00014192,2]
[338358838,1726554643577,-150.0,0.00014192,2]
[338358839,1726554643590,-150.0,0.00014192,2]
[338358840,1726554643606,-150.0,0.00014192,2]
[338358841,1726554643624,-427.99,0.00014192,2]
[338358842,1726554643641,-357.86,0.00014192,2]
[338358843,1726554643658,-150.0,0.00014192,2]
[338358844,1726554643672,-150.0,0.00014192,2]
[338358845,1726554643692,-150.0,0.00014192,2]
[338358846,1726554643708,-427.99,0.00014192,2]
[338358847,1726554643723,-150.0,0.00014192,2]
[338358848,1726554643739,-357.86,0.00014192,2]
[338358849,1726554643755,-150.0,0.00014192,2]
[338358850,1726554643770,-150.0,0.00014192,2]
[338358851,1726554643784,-150.0,0.00014192,2]
[338358852,1726554643799,-150.0,0.00014192,2]
[338358853,1726554643815,-150.0,0.00014192,2]
[338358854,1726554643829,-150.0,0.00014192,2]
[338358855,1726554643844,-427.99,0.00014192,2]
[338358856,1726554643859,-357.86,0.00014192,2]
[338358857,1726554643875,-150.0,0.00014192,2]
[338358858,1726554643889,-150.0,0.00014192,2]
[338358859,1726554643905,-150.0,0.00014192,2]
[338358860,1726554643919,-150.0,0.00014192,2]
[338358861,1726554643934,-150.0,0.00014192,2]
[338358862,1726554643950,-150.0,0.00014192,2]
[338358863,1726554643965,-150.0,0.00014192,2]
[338358864,1726554643980,-150.0,0.00014192,2]
[338358865,1726554643995,-150.0,0.00014192,2]
[338358866,1726554644010,-150.0,0.00014192,2]
[338358867,1726554644024,-150.0,0.00014192,2]
[338358868,1726554644040,-427.99,0.00014192,2]
[338358869,1726554644055,-357.86,0.00014192,2]
[338358870,1726554644071,-150.0,0.00014192,2]
[338358871,1726554644086,-150.0,0.00014192,2]
[338358872,1726554644101,-150.0,0.00014192,2]
[338358873,1726554644117,-150.0,0.00014192,2]
[338358874,1726554644133,-150.0,0.00014192,2]
[338358875,1726554644148,-357.86,0.00014192,2]
[338358876,1726554644162,-427.99,0.00014192,2]
[338358877,1726554644177,-427.99,0.00014192,2]
[338358878,1726554644194,-150.0,0.00014192,2]
[338358879,1726554644209,-150.0,0.00014192,2]
[338358880,1726554644223,-150.0,0.00014192,2]
[338358881,1726554644239,-150.0,0.00014192,2]
[338358882,1726554644255,-150.0,0.00014192,2]
[338358883,1726554644270,-357.86,0.00014192,2]
[338358884,1726554644285,-150.0,0.00014192,2]
[338358885,1726554644299,-150.0,0.00014192,2]
[338358886,1726554644313,-427.99,0.00014192,2]
[338358887,1726554644328,-150.0,0.00014192,2]
[338358888,1726554644341,-150.0,0.00014192,2]
[338358889,1726554644356,-150.0,0.00014192,2]
[338358890,1726554644372,-150.0,0.00014192,2]
[338358891,1726554644387,-357.86,0.00014192,2]
[338358892,1726554644401,-150.0,0.00014192,2]
[338358893,1726554644416,-150.0,0.00014192,2]
[338358894,1726554644430,-150.0,0.00014192,2]
[338358895,1726554644445,-150.0,0.00014192,2]
[338358896,1726554644459,-150.0,0.00014192,2]
[338358897,1726554644474,-150.0,0.00014192,2]
[338358898,1726554644488,-355.86,0.00014192,2]
[338358899,1726554644502,-150.0,0.00014192,2]
[338358900,1726554644517,-150.0,0.00014192,2]
[338358901,1726554644532,-427.99,0.00014192,2]
[338358902,1726554644548,-427.99,0.00014192,2]
[338358903,1726554644563,-166.08,0.00014192,2]
[338358904,1726554644578,-150.0,0.00014192,2]
[338358905,1726554644593,-150.0,0.00014192,2]
[338358906,1726554644608,-150.0,0.00014192,2]
[338358907,1726554644623,-150.0,0.00014192,2]
[338358908,1726554644638,-357.86,0.00014192,2]
[338358909,1726554644653,-152.02,0.00014192,2]
[338358910,1726554644669,-427.99,0.00014192,2]
[338358911,1726554644683,-441.08,0.00014192,2]
[338358912,1726554644699,-150.0,0.00014192,2]
[338358913,1726554644714,-357.86,0.00014192,2]
[338358914,1726554644729,-150.0,0.00014192,2]
[338358915,1726554644745,-150.0,0.00014192,2]
[338358916,1726554644760,-157.77,0.00014192,2]
[338358917,1726554644775,-150.0,0.00014192,2]
[338358918,1726554644788,-150.0,0.00014192,2]
[338358919,1726554644803,-427.99,0.00014192,2]
[338358920,1726554644817,-357.86,0.00014192,2]
[338358921,1726554644832,-150.0,0.00014192,2]
[338358922,1726554644847,-150.0,0.00014192,2]
[338358923,1726554644863,-150.0,0.00014192,2]
[338358924,1726554644878,-150.0,0.00014192,2]